[Event "*** SCC Grand Prix: Titled Tuesday Blitz"]
[Site "Chess.com"]
[Date "2020.08.04"]
[Round "10"]
[White "KarstenHansch"]
[Black "AJSC02"]
[Result "1/2-1/2"]
[WhiteElo "2403"]
[BlackElo "2275"]
[TimeControl "180+1"]
[EndTime "15:39:20 PDT"]
[Termination "Game drawn by repetition"]

1. e4 {[%clk 0:03:00.9]} 1... c5 {[%clk 0:02:56.6]} 2. Nf3 {[%clk 0:02:58.9]}
2... Nc6 {[%clk 0:02:57.1]} 3. Bb5 {[%clk 0:02:58]} 3... Nf6 {[%clk 0:02:56.6]}
4. e5 {[%clk 0:02:57.1]} 4... Nd5 {[%clk 0:02:56.2]} 5. O-O {[%clk 0:02:57.2]}
5... Nc7 {[%clk 0:02:55.8]} 6. Bxc6 {[%clk 0:02:56.8]} 6... dxc6 {[%clk
0:02:56.7]} 7. h3 {[%clk 0:02:55.8]} 7... Bf5 {[%clk 0:02:56.3]} 8. d3 {[%clk
0:02:52.3]} 8... h6 {[%clk 0:02:56.1]} 9. Nbd2 {[%clk 0:02:45.8]} 9... e6 {[%clk
0:02:56.2]} 10. Nc4 {[%clk 0:02:45.7]} 10... Nb5 {[%clk 0:02:55.6]} 11. a4
{[%clk 0:02:29.6]} 11... Nd4 {[%clk 0:02:55.3]} 12. Nxd4 {[%clk 0:02:29.5]}
12... cxd4 {[%clk 0:02:56.2]} 13. g4 {[%clk 0:02:24.9]} 13... Bg6 {[%clk
0:02:54.2]} 14. f4 {[%clk 0:02:24]} 14... h5 {[%clk 0:02:38.7]} 15. f5 {[%clk
0:02:23.5]} 15... Bh7 {[%clk 0:01:45.2]} 16. Qf3 {[%clk 0:02:20.5]} 16... hxg4
{[%clk 0:01:44]} 17. hxg4 {[%clk 0:02:19.6]} 17... Qd5 {[%clk 0:01:42.2]} 18.
Qxd5 {[%clk 0:02:06]} 18... cxd5 {[%clk 0:01:43.1]} 19. Nd2 {[%clk 0:02:04.5]}
19... Rc8 {[%clk 0:01:39.7]} 20. Nb3 {[%clk 0:01:59.2]} 20... Rxc2 {[%clk
0:01:28.1]} 21. Nxd4 {[%clk 0:01:57]} 21... Bc5 {[%clk 0:01:27.8]} 22. Be3
{[%clk 0:01:56.6]} 22... Rxb2 {[%clk 0:01:19.2]} 23. Rfc1 {[%clk 0:01:43.3]}
23... b6 {[%clk 0:01:12]} 24. a5 {[%clk 0:01:16]} 24... Kd7 {[%clk 0:01:11.6]}
25. axb6 {[%clk 0:01:15.9]} 25... Bxb6 {[%clk 0:01:12]} 26. Ra4 {[%clk 0:01:09]}
26... exf5 {[%clk 0:00:49.3]} 27. gxf5 {[%clk 0:01:06.3]} 27... Bg8 {[%clk
0:00:30.9]} 28. Nc2 {[%clk 0:00:42.9]} 28... Rxc2 {[%clk 0:00:24.9]} 29. Rxc2
{[%clk 0:00:41.5]} 29... Bxe3+ {[%clk 0:00:24.6]} 30. Kg2 {[%clk 0:00:41.9]}
30... Rh5 {[%clk 0:00:20.2]} 31. d4 {[%clk 0:00:41.3]} 31... Rxf5 {[%clk
0:00:12.6]} 32. Rxa7+ {[%clk 0:00:40.7]} 32... Kd8 {[%clk 0:00:07]} 33. Ra8+
{[%clk 0:00:22.2]} 33... Kd7 {[%clk 0:00:05.4]} 34. Ra7+ {[%clk 0:00:22.8]}
34... Kd8 {[%clk 0:00:05.2]} 35. Ra8+ {[%clk 0:00:23.7]} 35... Kd7 {[%clk
0:00:05.2]} 36. Rxg8 {[%clk 0:00:24.6]} 36... Bxd4 {[%clk 0:00:04.4]} 37. Rxg7
{[%clk 0:00:22.9]} 37... Bxe5 {[%clk 0:00:04.1]} 38. Rg8 {[%clk 0:00:23.1]}
38... Ke6 {[%clk 0:00:04.3]} 39. Re8+ {[%clk 0:00:23.1]} 39... Kf6 {[%clk
0:00:04.2]} 40. Rc6+ {[%clk 0:00:20.8]} 40... Kg7 {[%clk 0:00:03.2]} 41. Rd8
{[%clk 0:00:21]} 41... d4 {[%clk 0:00:03.1]} 42. Rc5 {[%clk 0:00:21]} 42... f6
{[%clk 0:00:03.7]} 43. Rcd5 {[%clk 0:00:20.4]} 43... Rg5+ {[%clk 0:00:04.6]} 44.
Kf3 {[%clk 0:00:20]} 44... Kf7 {[%clk 0:00:05.5]} 45. R5d7+ {[%clk 0:00:19.7]}
45... Ke6 {[%clk 0:00:05.9]} 46. Ke4 {[%clk 0:00:20]} 46... Rg4+ {[%clk
0:00:05.6]} 47. Kd3 {[%clk 0:00:20.1]} 47... Kf5 {[%clk 0:00:06.5]} 48. Rf8
{[%clk 0:00:19.4]} 48... Rg3+ {[%clk 0:00:06.8]} 49. Ke2 {[%clk 0:00:18.1]}
49... Ke4 {[%clk 0:00:07.7]} 50. Rh7 {[%clk 0:00:16.9]} 50... Rg2+ {[%clk
0:00:07.7]} 51. Kf1 {[%clk 0:00:16.6]} 51... Ra2 {[%clk 0:00:08]} 52. Rh4+
{[%clk 0:00:16.6]} 52... Kd3 {[%clk 0:00:07.1]} 53. Rh3+ {[%clk 0:00:16.9]}
53... Kc4 {[%clk 0:00:06.2]} 54. Rc8+ {[%clk 0:00:16.8]} 54... Kd5 {[%clk
0:00:06.3]} 55. Rd8+ {[%clk 0:00:16]} 55... Ke4 {[%clk 0:00:06.7]} 56. Rh4+
{[%clk 0:00:14.8]} 56... Bf4 {[%clk 0:00:06.9]} 57. Rxd4+ {[%clk 0:00:10.7]}
57... Kxd4 {[%clk 0:00:06.4]} 58. Rxf4+ {[%clk 0:00:11.3]} 58... Ke5 {[%clk
0:00:07.3]} 59. Rb4 {[%clk 0:00:11.6]} 59... f5 {[%clk 0:00:07.6]} 60. Ke1
{[%clk 0:00:11.7]} 60... f4 {[%clk 0:00:06.6]} 61. Kf1 {[%clk 0:00:11.9]} 61...
Kf5 {[%clk 0:00:07.5]} 62. Rb3 {[%clk 0:00:08.8]} 62... Kg4 {[%clk 0:00:07.6]}
63. Kg1 {[%clk 0:00:09.1]} 63... f3 {[%clk 0:00:07.8]} 64. Rb8 {[%clk
0:00:08.8]} 64... Kg3 {[%clk 0:00:06.9]} 65. Rg8+ {[%clk 0:00:08.7]} 65... Kf4
{[%clk 0:00:07.6]} 66. Rf8+ {[%clk 0:00:09]} 66... Ke3 {[%clk 0:00:08.5]} 67.
Re8+ {[%clk 0:00:09.4]} 67... Kd4 {[%clk 0:00:08.2]} 68. Rd8+ {[%clk 0:00:09.6]}
68... Ke4 {[%clk 0:00:08.1]} 69. Re8+ {[%clk 0:00:09.7]} 69... Kf5 {[%clk
0:00:08]} 70. Rf8+ {[%clk 0:00:09.9]} 70... Kg4 {[%clk 0:00:08.9]} 71. Rg8+
{[%clk 0:00:10.1]} 71... Kf4 {[%clk 0:00:09.3]} 72. Rf8+ {[%clk 0:00:10.5]}
72... Ke3 {[%clk 0:00:10.2]} 73. Re8+ {[%clk 0:00:10.6]} 73... Kd4 {[%clk
0:00:09.9]} 74. Rd8+ {[%clk 0:00:10.7]} 74... Ke3 {[%clk 0:00:10.3]} 75. Re8+
{[%clk 0:00:10.9]} 1/2-1/2

[Event "*** SCC Grand Prix: Titled Tuesday Blitz"]
[Site "Chess.com"]
[Date "2020.08.04"]
[Round "10"]
[White "Grandmaster2B"]
[Black "GianmarcoVaR"]
[Result "1-0"]
[WhiteElo "2408"]
[BlackElo "2444"]
[TimeControl "180+1"]
[EndTime "15:39:23 PDT"]
[Termination "Grandmaster2B won by resignation"]

1. e4 {[%clk 0:03:00.9]} 1... c6 {[%clk 0:02:55.3]} 2. d4 {[%clk 0:03:00.6]}
2... d5 {[%clk 0:02:54.5]} 3. Nd2 {[%clk 0:03:01.2]} 3... dxe4 {[%clk
0:02:54.5]} 4. Nxe4 {[%clk 0:03:02.1]} 4... Bf5 {[%clk 0:02:54.7]} 5. Ng3 {[%clk
0:03:02.4]} 5... Bg6 {[%clk 0:02:54.9]} 6. h4 {[%clk 0:03:03]} 6... h6 {[%clk
0:02:55]} 7. Nf3 {[%clk 0:03:03.7]} 7... Nd7 {[%clk 0:02:54.5]} 8. h5 {[%clk
0:03:03.7]} 8... Bh7 {[%clk 0:02:54.5]} 9. Bd3 {[%clk 0:03:04.5]} 9... Bxd3
{[%clk 0:02:54.7]} 10. Qxd3 {[%clk 0:03:05.4]} 10... e6 {[%clk 0:02:54.9]} 11.
Bd2 {[%clk 0:03:05.8]} 11... Ngf6 {[%clk 0:02:51.1]} 12. O-O-O {[%clk 0:03:06]}
12... Be7 {[%clk 0:02:50.5]} 13. Ne4 {[%clk 0:03:06.3]} 13... Nxe4 {[%clk
0:02:42]} 14. Qxe4 {[%clk 0:03:07.2]} 14... Nf6 {[%clk 0:02:42.5]} 15. Qe2
{[%clk 0:03:07.6]} 15... Qd5 {[%clk 0:02:42.7]} 16. c4 {[%clk 0:03:06.9]} 16...
Qe4 {[%clk 0:02:41.6]} 17. Qxe4 {[%clk 0:03:06.2]} 17... Nxe4 {[%clk 0:02:42.1]}
18. Be3 {[%clk 0:03:06.6]} 18... Rd8 {[%clk 0:02:37.9]} 19. Nd2 {[%clk
0:02:58.9]} 19... Nd6 {[%clk 0:01:56.7]} 20. Kc2 {[%clk 0:02:56.9]} 20... Nf5
{[%clk 0:01:56.1]} 21. Nf3 {[%clk 0:02:46.4]} 21... c5 {[%clk 0:01:41]} 22. g4
{[%clk 0:02:17.3]} 22... cxd4 {[%clk 0:01:37]} 23. Bxd4 {[%clk 0:02:12.4]} 23...
Nxd4+ {[%clk 0:01:36.5]} 24. Nxd4 {[%clk 0:02:12.4]} 24... Bc5 {[%clk
0:01:34.4]} 25. Kc3 {[%clk 0:02:12.3]} 25... Ke7 {[%clk 0:01:23.1]} 26. b4
{[%clk 0:02:02.3]} 26... Bxd4+ {[%clk 0:01:23.5]} 27. Rxd4 {[%clk 0:02:03.2]}
27... Rxd4 {[%clk 0:01:23.7]} 28. Kxd4 {[%clk 0:02:03.4]} 28... Rd8+ {[%clk
0:01:24.4]} 29. Ke3 {[%clk 0:01:51.4]} 29... e5 {[%clk 0:01:24.7]} 30. f3 {[%clk
0:01:25.7]} 30... Ke6 {[%clk 0:01:24]} 31. Rc1 {[%clk 0:01:23.7]} 31... Rd4
{[%clk 0:01:24.2]} 32. c5 {[%clk 0:01:17.3]} 32... Rxb4 {[%clk 0:01:23]} 33. c6
{[%clk 0:01:17.2]} 33... bxc6 {[%clk 0:01:21.4]} 34. Rxc6+ {[%clk 0:01:18.1]}
34... Kd7 {[%clk 0:01:20.9]} 35. Ra6 {[%clk 0:01:17.4]} 35... Rb7 {[%clk
0:01:01.1]} 36. Ke4 {[%clk 0:01:17.3]} 36... f6 {[%clk 0:01:01.5]} 37. f4 {[%clk
0:00:59.9]} 37... Rb4+ {[%clk 0:00:50.6]} 38. Ke3 {[%clk 0:00:54.5]} 38... exf4+
{[%clk 0:00:50]} 39. Kf3 {[%clk 0:00:54.4]} 39... Ke7 {[%clk 0:00:14.7]} 40.
Rxa7+ {[%clk 0:00:52.7]} 40... Kf8 {[%clk 0:00:14.9]} 41. a4 {[%clk 0:00:51.9]}
41... Kg8 {[%clk 0:00:14.2]} 42. a5 {[%clk 0:00:51.9]} 42... Kh7 {[%clk
0:00:14.7]} 43. a6 {[%clk 0:00:52.3]} 43... Ra4 {[%clk 0:00:14.8]} 44. Ra8
{[%clk 0:00:52.5]} 44... Rc4 {[%clk 0:00:11.4]} 45. a7 {[%clk 0:00:49.4]} 45...
Ra4 {[%clk 0:00:11.6]} 46. Kf2 {[%clk 0:00:42.8]} 46... Ra3 {[%clk 0:00:10.3]}
47. Kg2 {[%clk 0:00:40.5]} 47... Rg3+ {[%clk 0:00:03.9]} 48. Kf2 {[%clk
0:00:39.7]} 48... Ra3 {[%clk 0:00:04.8]} 49. Ke2 {[%clk 0:00:37.8]} 49... f5
{[%clk 0:00:03.6]} 50. gxf5 {[%clk 0:00:33.8]} 50... Ra5 {[%clk 0:00:03.2]} 51.
Kf3 {[%clk 0:00:33.1]} 51... Ra4 {[%clk 0:00:03.6]} 52. Kg4 {[%clk 0:00:31]}
52... f3+ {[%clk 0:00:02.3]} 53. Kxf3 {[%clk 0:00:31]} 53... Ra3+ {[%clk
0:00:03.2]} 54. Kf4 {[%clk 0:00:30.6]} 54... Ra4+ {[%clk 0:00:03.4]} 55. Ke5
{[%clk 0:00:31.1]} 55... Ra5+ {[%clk 0:00:03.9]} 56. Ke6 {[%clk 0:00:26.5]}
56... Ra6+ {[%clk 0:00:04.1]} 57. Ke7 {[%clk 0:00:14.8]} 57... Ra1 {[%clk
0:00:03.3]} 58. f6 {[%clk 0:00:12.9]} 58... gxf6 {[%clk 0:00:02.7]} 59. Kxf6
{[%clk 0:00:13.8]} 59... Ra6+ {[%clk 0:00:02.8]} 60. Ke7 {[%clk 0:00:12.5]}
60... Ra5 {[%clk 0:00:03.7]} 61. Kd6 {[%clk 0:00:12.1]} 61... Ra6+ {[%clk
0:00:04.1]} 62. Kd5 {[%clk 0:00:12]} 62... Ra1 {[%clk 0:00:05]} 63. Kc4 {[%clk
0:00:12.1]} 63... Rc1+ {[%clk 0:00:04.9]} 64. Kb3 {[%clk 0:00:08.4]} 64... Ra1
{[%clk 0:00:05.8]} 65. Kb2 {[%clk 0:00:08.8]} 65... Ra6 {[%clk 0:00:05.8]} 66.
Kc3 {[%clk 0:00:08.9]} 66... Ra5 {[%clk 0:00:06]} 67. Kb4 {[%clk 0:00:09.1]}
67... Ra6 {[%clk 0:00:06.6]} 68. Kb5 {[%clk 0:00:09.3]} 68... Ra1 {[%clk
0:00:06.9]} 69. Kc6 {[%clk 0:00:07.9]} 69... Ra5 {[%clk 0:00:06.6]} 70. Kb6
{[%clk 0:00:05.8]} 70... Rxa7 {[%clk 0:00:06.7]} 71. Rxa7+ {[%clk 0:00:05.7]}
71... Kh8 {[%clk 0:00:06.3]} 72. Kc6 {[%clk 0:00:06.6]} 72... Kg8 {[%clk
0:00:06.4]} 73. Kd5 {[%clk 0:00:07.5]} 73... Kh8 {[%clk 0:00:04.8]} 74. Ke5
{[%clk 0:00:08.4]} 74... Kg8 {[%clk 0:00:05.1]} 75. Kf5 {[%clk 0:00:09.3]} 75...
Kh8 {[%clk 0:00:05.4]} 76. Kg6 {[%clk 0:00:10.2]} 1-0

[Event "*** SCC Grand Prix: Titled Tuesday Blitz"]
[Site "Chess.com"]
[Date "2020.08.04"]
[Round "10"]
[White "BlackBoarder"]
[Black "MF1966Idrisov"]
[Result "0-1"]
[WhiteElo "2548"]
[BlackElo "2380"]
[TimeControl "180+1"]
[EndTime "15:39:37 PDT"]
[Termination "MF1966Idrisov won by checkmate"]

1. e4 {[%clk 0:03:00]} 1... c6 {[%clk 0:02:59.3]} 2. Nf3 {[%clk 0:02:59.4]} 2...
d5 {[%clk 0:02:59.5]} 3. Nc3 {[%clk 0:02:54.3]} 3... dxe4 {[%clk 0:02:58.7]} 4.
Nxe4 {[%clk 0:02:52.2]} 4... Nd7 {[%clk 0:02:58.4]} 5. Bc4 {[%clk 0:02:51.7]}
5... e6 {[%clk 0:02:56.6]} 6. Qe2 {[%clk 0:02:51.3]} 6... Nb6 {[%clk 0:02:55.3]}
7. Bb3 {[%clk 0:02:50.6]} 7... Nf6 {[%clk 0:02:55.3]} 8. Neg5 {[%clk 0:02:22.7]}
8... h6 {[%clk 0:02:48.5]} 9. Nxf7 {[%clk 0:02:22.5]} 9... Kxf7 {[%clk
0:02:47.5]} 10. Ne5+ {[%clk 0:02:22.6]} 10... Kg8 {[%clk 0:02:46.1]} 11. Ng6
{[%clk 0:02:22.1]} 11... Kh7 {[%clk 0:02:32.2]} 12. Nxh8 {[%clk 0:02:12.9]}
12... Kxh8 {[%clk 0:02:31.8]} 13. O-O {[%clk 0:02:08.8]} 13... Nbd5 {[%clk
0:02:19.3]} 14. d4 {[%clk 0:02:07]} 14... b5 {[%clk 0:02:17.5]} 15. Re1 {[%clk
0:01:58.7]} 15... Bd6 {[%clk 0:02:16.9]} 16. h3 {[%clk 0:01:55.4]} 16... Bd7
{[%clk 0:02:16.7]} 17. a4 {[%clk 0:01:51.9]} 17... a6 {[%clk 0:02:14.8]} 18. c3
{[%clk 0:01:49.6]} 18... Qf8 {[%clk 0:02:09.2]} 19. Bc2 {[%clk 0:01:41.3]} 19...
Ne7 {[%clk 0:01:54.6]} 20. Qf3 {[%clk 0:01:26.7]} 20... Nf5 {[%clk 0:01:52.1]}
21. Bf4 {[%clk 0:01:16]} 21... Bxf4 {[%clk 0:01:46.8]} 22. Qxf4 {[%clk
0:01:15.3]} 22... Qd6 {[%clk 0:01:43.5]} 23. Re5 {[%clk 0:01:03.8]} 23... Nd5
{[%clk 0:01:34]} 24. Qe4 {[%clk 0:00:43.6]} 24... Rf8 {[%clk 0:01:28]} 25. g4
{[%clk 0:00:36.3]} 25... Nf6 {[%clk 0:01:12.5]} 26. Qd3 {[%clk 0:00:34.4]} 26...
Ne7 {[%clk 0:01:05.5]} 27. axb5 {[%clk 0:00:30.8]} 27... cxb5 {[%clk 0:01:05.4]}
28. Rf1 {[%clk 0:00:21.7]} 28... Nc6 {[%clk 0:01:02.1]} 29. Re3 {[%clk
0:00:18.9]} 29... Be8 {[%clk 0:00:57.3]} 30. f4 {[%clk 0:00:18.4]} 30... Ne7
{[%clk 0:00:41]} 31. g5 {[%clk 0:00:16.1]} 31... Bg6 {[%clk 0:00:40.5]} 32. Qe2
{[%clk 0:00:10.4]} 32... Nfd5 {[%clk 0:00:40.4]} 33. Rxe6 {[%clk 0:00:08.8]}
33... Nxf4 {[%clk 0:00:39.3]} 34. Rxd6 {[%clk 0:00:03.7]} 34... Nxe2+ {[%clk
0:00:39]} 35. Kg2 {[%clk 0:00:04.1]} 35... Rxf1 {[%clk 0:00:34.3]} 36. Kxf1
{[%clk 0:00:04.1]} 36... Ng3+ {[%clk 0:00:32.3]} 37. Kg2 {[%clk 0:00:04]} 37...
Bxc2 {[%clk 0:00:31.9]} 38. Rd8+ {[%clk 0:00:03.7]} 38... Kh7 {[%clk 0:00:30.8]}
39. Kxg3 {[%clk 0:00:04.4]} 39... hxg5 {[%clk 0:00:28.8]} 40. d5 {[%clk
0:00:03.3]} 40... Kg6 {[%clk 0:00:24.7]} 41. d6 {[%clk 0:00:03.1]} 41... Nf5+
{[%clk 0:00:24.9]} 42. Kf3 {[%clk 0:00:03.6]} 42... Kf6 {[%clk 0:00:24.9]} 43.
Ra8 {[%clk 0:00:02]} 43... Ke6 {[%clk 0:00:20.6]} 44. Rxa6 {[%clk 0:00:02.3]}
44... Nxd6 {[%clk 0:00:20.7]} 45. Ra7 {[%clk 0:00:03]} 45... g6 {[%clk
0:00:19.8]} 46. Ke3 {[%clk 0:00:03.2]} 46... Bf5 {[%clk 0:00:19.5]} 47. Kd4
{[%clk 0:00:03.1]} 47... Bxh3 {[%clk 0:00:18.8]} 48. Kc5 {[%clk 0:00:03.3]}
48... Nf5 {[%clk 0:00:15.9]} 49. Kxb5 {[%clk 0:00:02.9]} 49... g4 {[%clk
0:00:15.8]} 50. Ra6+ {[%clk 0:00:03.3]} 50... Kf7 {[%clk 0:00:15.2]} 51. c4
{[%clk 0:00:03.6]} 51... g3 {[%clk 0:00:14.8]} 52. c5 {[%clk 0:00:04]} 52... g2
{[%clk 0:00:14.6]} 53. Ra1 {[%clk 0:00:04.1]} 53... Nd4+ {[%clk 0:00:14.4]} 54.
Kb6 {[%clk 0:00:02.5]} 54... Ne2 {[%clk 0:00:14.5]} 55. c6 {[%clk 0:00:01.6]}
55... g1=Q+ {[%clk 0:00:14.1]} 56. Rxg1 {[%clk 0:00:02.2]} 56... Nxg1 {[%clk
0:00:14.1]} 57. b4 {[%clk 0:00:02.9]} 57... Ne2 {[%clk 0:00:14.1]} 58. Kc7
{[%clk 0:00:02.9]} 58... Nc3 {[%clk 0:00:13.5]} 59. Kd6 {[%clk 0:00:02.3]} 59...
Kf6 {[%clk 0:00:13.1]} 60. Kc5 {[%clk 0:00:02.4]} 60... g5 {[%clk 0:00:12.1]}
61. Kc4 {[%clk 0:00:02.8]} 61... Na4 {[%clk 0:00:12]} 62. b5 {[%clk 0:00:02.5]}
62... Ke6 {[%clk 0:00:09]} 63. Kb4 {[%clk 0:00:02.5]} 63... Nb6 {[%clk
0:00:08.9]} 64. Kc5 {[%clk 0:00:02.9]} 64... Nc8 {[%clk 0:00:08.9]} 65. b6
{[%clk 0:00:02.9]} 65... Nxb6 {[%clk 0:00:08.8]} 66. Kxb6 {[%clk 0:00:03.3]}
66... Ke5 {[%clk 0:00:08.9]} 67. c7 {[%clk 0:00:02.4]} 67... Be6 {[%clk
0:00:08.6]} 68. Kc6 {[%clk 0:00:01.8]} 68... g4 {[%clk 0:00:08.7]} 69. c8=Q
{[%clk 0:00:02]} 69... Bxc8 {[%clk 0:00:07.5]} 70. Kc7 {[%clk 0:00:01.3]} 70...
g3 {[%clk 0:00:07.6]} 71. Kd8 {[%clk 0:00:01.8]} 71... g2 {[%clk 0:00:07.9]} 72.
Ke7 {[%clk 0:00:02.3]} 72... g1=Q {[%clk 0:00:08]} 73. Kd8 {[%clk 0:00:02.8]}
73... Qa7 {[%clk 0:00:07.2]} 74. Kxc8 {[%clk 0:00:02.2]} 74... Kd6 {[%clk
0:00:06.7]} 75. Kd8 {[%clk 0:00:02.6]} 75... Qd7# {[%clk 0:00:06.3]} 0-1

[Event "*** SCC Grand Prix: Titled Tuesday Blitz"]
[Site "Chess.com"]
[Date "2020.08.04"]
[Round "10"]
[White "SamuelGhimpu2003"]
[Black "effefe"]
[Result "1-0"]
[WhiteElo "2560"]
[BlackElo "2188"]
[TimeControl "180+1"]
[EndTime "15:39:38 PDT"]
[Termination "SamuelGhimpu2003 won on time"]

1. e4 {[%clk 0:03:00.9]} 1... c5 {[%clk 0:02:57.1]} 2. Nf3 {[%clk 0:02:57.7]}
2... d6 {[%clk 0:02:57.4]} 3. d4 {[%clk 0:02:58.6]} 3... cxd4 {[%clk 0:02:58.1]}
4. Nxd4 {[%clk 0:02:59.5]} 4... Nf6 {[%clk 0:02:58.6]} 5. Nc3 {[%clk 0:02:58]}
5... g6 {[%clk 0:02:59]} 6. Bc4 {[%clk 0:02:53.2]} 6... Bg7 {[%clk 0:02:59.1]}
7. Bb3 {[%clk 0:02:53.4]} 7... O-O {[%clk 0:02:58.9]} 8. f3 {[%clk 0:02:52.7]}
8... Nc6 {[%clk 0:02:59.2]} 9. Be3 {[%clk 0:02:52.6]} 9... Bd7 {[%clk
0:02:56.9]} 10. Qd2 {[%clk 0:02:51.4]} 10... Na5 {[%clk 0:02:53.6]} 11. O-O-O
{[%clk 0:02:50.4]} 11... Rc8 {[%clk 0:02:51.3]} 12. Kb1 {[%clk 0:02:50.3]} 12...
Nc4 {[%clk 0:02:51.5]} 13. Bxc4 {[%clk 0:02:50.6]} 13... Rxc4 {[%clk 0:02:52.3]}
14. g4 {[%clk 0:02:51.3]} 14... b5 {[%clk 0:02:49.9]} 15. b3 {[%clk 0:02:51.5]}
15... Rc8 {[%clk 0:02:38.5]} 16. Ndxb5 {[%clk 0:01:59.9]} 16... Qa5 {[%clk
0:02:23.5]} 17. a4 {[%clk 0:02:00]} 17... a6 {[%clk 0:02:13.2]} 18. Nd5 {[%clk
0:01:48.5]} 18... Qxd2 {[%clk 0:02:12.7]} 19. Nxe7+ {[%clk 0:01:48.2]} 19... Kh8
{[%clk 0:02:12.3]} 20. Rxd2 {[%clk 0:01:49.1]} 20... axb5 {[%clk 0:02:09.9]} 21.
Nxc8 {[%clk 0:01:47.9]} 21... Rxc8 {[%clk 0:02:08.2]} 22. a5 {[%clk 0:01:45.9]}
22... Ne8 {[%clk 0:01:55.9]} 23. a6 {[%clk 0:01:41.1]} 23... Bc3 {[%clk
0:01:45.5]} 24. Rd3 {[%clk 0:01:39.4]} 24... Bb4 {[%clk 0:01:44.4]} 25. Kb2
{[%clk 0:01:36.9]} 25... Ra8 {[%clk 0:01:40.2]} 26. c3 {[%clk 0:01:33.8]} 26...
Ba5 {[%clk 0:01:36.9]} 27. a7 {[%clk 0:01:34.2]} 27... Be6 {[%clk 0:01:23.6]}
28. Rhd1 {[%clk 0:01:22.7]} 28... Kg8 {[%clk 0:01:05.3]} 29. Rxd6 {[%clk
0:01:18.2]} 29... Nxd6 {[%clk 0:01:02.9]} 30. Rxd6 {[%clk 0:01:19.1]} 30... Bc7
{[%clk 0:00:48.7]} 31. Rc6 {[%clk 0:01:16.5]} 31... Bxh2 {[%clk 0:00:43.5]} 32.
f4 {[%clk 0:01:16.2]} 32... Bxg4 {[%clk 0:00:19.7]} 33. Rb6 {[%clk 0:01:12.1]}
33... Bxf4 {[%clk 0:00:19.3]} 34. Bxf4 {[%clk 0:01:09.9]} 34... Rxa7 {[%clk
0:00:19.6]} 35. Bh6 {[%clk 0:01:08.3]} 35... f5 {[%clk 0:00:17.6]} 36. e5 {[%clk
0:01:05.6]} 36... Kf7 {[%clk 0:00:16]} 37. Rxb5 {[%clk 0:01:05.8]} 37... Ke6
{[%clk 0:00:13.5]} 38. c4 {[%clk 0:01:05.6]} 38... Rd7 {[%clk 0:00:07]} 39. Kc3
{[%clk 0:01:03.4]} 39... Rd1 {[%clk 0:00:05.9]} 40. Bf4 {[%clk 0:01:00.2]} 40...
Rf1 {[%clk 0:00:05]} 41. Rb6+ {[%clk 0:01:00.2]} 41... Kd7 {[%clk 0:00:05]} 42.
Rd6+ {[%clk 0:00:59.6]} 42... Ke8 {[%clk 0:00:04.2]} 43. Bg5 {[%clk 0:00:58.4]}
43... f4 {[%clk 0:00:03.8]} 44. e6 {[%clk 0:00:58.5]} 44... Rf3+ {[%clk
0:00:01.3]} 45. Kd4 {[%clk 0:00:56.8]} 45... Bxe6 {[%clk 0:00:02]} 46. Rxe6+
{[%clk 0:00:57.7]} 46... Kf7 {[%clk 0:00:02.6]} 47. Rf6+ {[%clk 0:00:57.5]}
47... Kg7 {[%clk 0:00:03.1]} 48. b4 {[%clk 0:00:57.6]} 48... Rb3 {[%clk
0:00:02.5]} 49. b5 {[%clk 0:00:46.6]} 49... h6 {[%clk 0:00:02.7]} 50. Rxf4
{[%clk 0:00:40]} 50... hxg5 {[%clk 0:00:03]} 51. Rf2 {[%clk 0:00:39.4]} 51... g4
{[%clk 0:00:02.4]} 52. Kc5 {[%clk 0:00:38.5]} 52... g3 {[%clk 0:00:02.8]} 53.
Rg2 {[%clk 0:00:38]} 53... Kf6 {[%clk 0:00:03.4]} 54. b6 {[%clk 0:00:38.1]}
54... Kf5 {[%clk 0:00:03.9]} 55. Kc6 {[%clk 0:00:37.8]} 55... Kf4 {[%clk
0:00:04.2]} 56. c5 {[%clk 0:00:37]} 56... g5 {[%clk 0:00:04.2]} 57. b7 {[%clk
0:00:35.3]} 57... g4 {[%clk 0:00:04.3]} 58. Kc7 {[%clk 0:00:34.7]} 58... Kf3
{[%clk 0:00:04.2]} 59. Rc2 {[%clk 0:00:29.5]} 59... g2 {[%clk 0:00:04.4]} 60.
Rc1 {[%clk 0:00:27.9]} 60... Kf2 {[%clk 0:00:04.2]} 61. b8=Q {[%clk 0:00:28.1]}
61... Rxb8 {[%clk 0:00:03.3]} 62. Kxb8 {[%clk 0:00:29]} 62... g1=Q {[%clk
0:00:03.9]} 63. Rxg1 {[%clk 0:00:29.6]} 63... Kxg1 {[%clk 0:00:04.8]} 64. c6
{[%clk 0:00:30.5]} 64... g3 {[%clk 0:00:05.7]} 65. c7 {[%clk 0:00:31]} 65... g2
{[%clk 0:00:06.6]} 66. c8=Q {[%clk 0:00:31.9]} 66... Kh1 {[%clk 0:00:06.8]} 67.
Qh3+ {[%clk 0:00:31]} 67... Kg1 {[%clk 0:00:07.1]} 68. Kc7 {[%clk 0:00:31.3]}
68... Kf2 {[%clk 0:00:07.7]} 69. Qf5+ {[%clk 0:00:29.8]} 69... Kg3 {[%clk
0:00:07.2]} 70. Qg5+ {[%clk 0:00:28.8]} 70... Kf2 {[%clk 0:00:06.7]} 71. Qf4+
{[%clk 0:00:28.1]} 71... Ke1 {[%clk 0:00:05.3]} 72. Qg3+ {[%clk 0:00:26.9]}
72... Kf1 {[%clk 0:00:05.7]} 73. Qf3+ {[%clk 0:00:27.3]} 73... Kg1 {[%clk
0:00:05.7]} 74. Kd6 {[%clk 0:00:26.8]} 74... Kh2 {[%clk 0:00:05.7]} 75. Qh5+
{[%clk 0:00:24.1]} 75... Kg3 {[%clk 0:00:04.3]} 76. Qg5+ {[%clk 0:00:23.6]}
76... Kh3 {[%clk 0:00:03.1]} 77. Ke5 {[%clk 0:00:21.1]} 77... Kh2 {[%clk
0:00:01.1]} 78. Qh4+ {[%clk 0:00:20.5]} 78... Kg1 {[%clk 0:00:01.6]} 79. Ke4
{[%clk 0:00:18.8]} 79... Kf1 {[%clk 0:00:01.5]} 80. Qf4+ {[%clk 0:00:14.5]} 1-0